bitfinex-derivatives/quotes_SOLF0:USTF0_20241230
["timestamp","ask_amount","ask_price","bid_price","bid_amount"]
[1735560863823,2.5846,193.8,193.77,8.73735262]
[1735560864022,2.5846,193.8,193.76,2.5848]
[1735560864215,2.5846,193.8,193.77,8.73874622]
[1735560864421,2.5846,193.79,193.75,2.5851]
[1735560864721,2.5846,193.79,193.76,8.73881219]
[1735560864923,2.5846,193.79,193.77,8.73881219]
[1735560865118,2.5846,193.79,193.75,2.5851]
[1735560865314,2.5846,193.79,193.76,8.74010231]
[1735560865522,2.5846,193.79,193.77,8.74010231]
[1735560865722,2.5846,193.79,193.75,2.5851]
[1735560865914,2.5846,193.79,193.76,8.74010465]
[1735560866219,2.5846,193.79,193.77,8.74010465]
[1735560866522,2.5846,193.79,193.78,4.14000223]
[1735560867217,2.5846,193.79,193.78,8.74179084]
[1735560867521,2.5845,193.8,193.78,8.74179084]
[1735560867718,2.5845,193.8,193.76,2.585]
[1735560867918,2.5845,193.8,193.77,8.74324414]
[1735560868218,2.5845,193.8,193.78,8.74324414]
[1735560868522,2.5845,193.8,193.76,2.585]
[1735560868723,2.5845,193.8,193.77,8.74513703]
[1735560868922,2.5845,193.8,193.78,8.74513703]
[1735560869113,8.19316435,193.81,193.74,11.19316435]
[1735560869313,2.5847,193.79,193.75,11.33233589]
[1735560869522,2.5847,193.79,193.76,8.74723589]
[1735560869722,2.5847,193.79,193.77,8.74723589]
[1735560869923,2.5847,193.79,193.78,8.74723589]
[1735560871426,2.5845,193.8,193.78,8.74723589]
[1735560871620,2.5845,193.8,193.79,8.74723589]
[1735560873925,2.5845,193.8,193.79,8.75506879]
[1735560875626,10.77756435,193.81,193.79,8.7566286]
[1735560875828,10.77756435,193.81,193.77,2.5848]
[1735560875829,2.5844,193.81,193.77,2.5848]
[1735560876028,2.5844,193.81,193.78,8.75647229]
[1735560876218,2.5844,193.81,193.79,8.75647229]
[1735560876423,2.5844,193.81,193.77,2.5848]
[1735560876723,2.5844,193.81,193.78,8.7573177]
[1735560877025,2.5844,193.81,193.79,8.75727841]
[1735560877228,2.5844,193.81,193.8,8.75727841]
[1735560878724,8.19316435,193.86,193.8,8.75727841]
[1735560878920,8.19316435,193.86,193.81,8.75727841]
[1735560879124,8.19316435,193.86,193.82,8.75727841]
[1735560879323,2.5839,193.85,193.83,8.75727841]
[1735560879524,8.19316435,193.86,193.78,8.19316435]
[1735560879728,8.19316435,193.86,193.79,8.75862298]
[1735560879927,2.584,193.84,193.8,6.7332072]
[1735560880124,2.584,193.84,193.81,8.75864371]
[1735560880325,2.5842,193.83,193.82,8.75864371]
[1735560881931,2.5842,193.83,193.82,6.33604371]
[1735560882231,2.5848,193.78,193.74,28.29112354]
[1735560882530,10.77796435,193.78,193.74,28.29112354]
[1735560883430,10.77796435,193.78,193.74,30.87632354]
[1735560883632,10.77796435,193.78,193.74,2.5852]
[1735560883834,2.5843,193.82,193.74,8.19316435]
[1735560884034,8.19316435,193.83,193.74,8.19316435]
[1735560884228,8.19316435,193.83,193.76,8.19316435]
[1735560884429,1.5272,193.89,193.76,11.19316435]
[1735560884728,8.19316435,193.86,193.78,8.19316435]
[1735560885133,2.5839,193.85,193.78,8.19316435]
[1735560885634,2.5839,193.84,193.8,2.5843]
[1735560892832,2.5839,193.84,193.78,8.19316435]
[1735560893029,2.5839,193.84,193.81,2.5843]
[1735560893737,8.19316435,193.86,193.81,2.5843]
[1735560894038,2.5838,193.85,193.82,8.62751626]
[1735560894238,2.5838,193.85,193.83,8.62751626]
[1735560894439,2.5838,193.85,193.84,8.62751626]
[1735560894937,10.77686435,193.86,193.78,8.19316435]
[1735560895138,10.77686435,193.86,193.79,8.62664595]
[1735560895331,10.77686435,193.86,193.8,8.62664595]
[1735560895532,10.77686435,193.86,193.81,8.62664595]
[1735560895730,10.77686435,193.86,193.82,8.62664595]
[1735560895930,10.77686435,193.86,193.83,8.62664595]
[1735560896130,10.77686435,193.86,193.84,8.62664595]
[1735560896340,10.77686435,193.86,193.78,8.19316435]
[1735560896540,10.77686435,193.86,193.79,8.62503907]
[1735560896735,10.77686435,193.86,193.8,8.62503907]
[1735560896932,10.77686435,193.86,193.81,8.62503907]
[1735560897133,10.77686435,193.86,193.82,8.62503907]
[1735560897341,10.77686435,193.86,193.83,8.62503907]
[1735560897541,10.77686435,193.86,193.84,8.62503907]
[1735560897738,10.77686435,193.86,193.78,8.19316435]
[1735560897940,10.77686435,193.86,193.79,8.62420606]
[1735560898246,8.19316435,193.84,193.8,8.62420606]
[1735560898538,8.19316435,193.82,193.81,8.62420606]
[1735560900143,8.19316435,193.82,193.81,4.07850106]
[1735560900543,8.19316435,193.82,193.81,8.62431678]
[1735560900745,8.19316435,193.82,193.74,10.05278088]
[1735560900947,2.5843,193.81,193.77,2.5848]
[1735560901147,8.19316435,193.8,193.78,8.62481553]
[1735560901344,8.19316435,193.8,193.79,8.62481553]
[1735560901540,2.98,193.86,193.79,8.62481553]
[1735560901737,8.19316435,193.81,193.77,2.5848]
[1735560901948,8.19316435,193.81,193.78,11.20960126]
[1735560902143,8.19316435,193.83,193.79,8.62490126]
[1735560902343,8.19316435,193.83,193.8,8.62464237]
[1735560902648,8.19316435,193.83,193.81,4.0785547]
[1735560902947,8.19316435,193.83,193.79,2.5845]
[1735560903246,8.19316435,193.83,193.8,8.62439197]
[1735560903441,8.19316435,193.83,193.81,4.07855517]
[1735560903643,8.19316435,193.83,193.8,2.5844]
[1735560904148,8.19316435,193.83,193.79,2.5845]
[1735560904350,10.77716435,193.83,193.8,8.62428362]
[1735560904647,10.77716435,193.83,193.75,8.19316435]
[1735560904844,2.5842,193.82,193.78,2.5847]
[1735560905144,2.5842,193.82,193.79,8.62505521]
[1735560905347,2.5842,193.82,193.8,8.62505521]
[1735560905549,2.5842,193.82,193.78,2.5847]
[1735560905742,2.5842,193.82,193.79,8.6251468]
[1735560905942,2.5842,193.82,193.8,4.54626307]
[1735560906142,2.5842,193.82,193.78,2.5847]
[1735560906342,2.5842,193.82,193.79,8.62488442]
[1735560906553,2.5842,193.82,193.8,8.62488442]
[1735560906846,2.5842,193.82,193.78,2.5847]
[1735560907035,2.5842,193.82,193.79,8.6252746]
[1735560907241,2.5842,193.82,193.8,8.6252746]
[1735560907443,2.5842,193.82,193.78,2.5847]
[1735560907646,2.5842,193.82,193.79,8.62538629]
[1735560907839,2.5842,193.82,193.8,8.62538629]
[1735560908043,2.5842,193.82,193.78,2.5847]
[1735560908240,2.5842,193.82,193.79,8.62503394]
[1735560908444,2.5842,193.82,193.8,8.62503394]
[1735560908743,2.5842,193.82,193.78,2.5847]
[1735560908941,2.5842,193.82,193.79,4.07898624]
[1735560909139,2.5842,193.82,193.8,8.62532266]
[1735560909344,2.5842,193.82,193.78,2.5847]
[1735560909551,2.5842,193.82,193.79,8.62579563]
[1735560909746,2.5843,193.81,193.8,8.62579563]
[1735560910050,2.5843,193.81,193.74,2.98]
[1735560910051,8.19316435,193.81,193.74,2.98]
[1735560910250,8.19316435,193.81,193.75,8.62470141]
[1735560910441,8.19316435,193.81,193.76,8.62470141]
[1735560910648,8.19316435,193.81,193.77,8.62470141]
[1735560910945,2.98,193.87,193.78,8.62470141]
[1735560910946,10.77776435,193.79,193.78,8.62470141]
[1735560911150,8.19316435,193.79,193.72,14.65197273]
[1735560911348,8.19316435,193.79,193.73,8.62429823]
[1735560911548,8.19316435,193.79,193.74,8.62429823]
[1735560911751,2.5847,193.78,193.75,8.62429823]
[1735560911945,8.19316435,193.77,193.76,8.62402307]
[1735560912150,8.19316435,193.77,193.72,4.59919185]
[1735560912356,2.98,193.77,193.73,8.62475434]
[1735560912547,8.19316435,193.73,193.71,7.07278088]
[1735560912853,2.5851,193.75,193.72,8.62558559]
[1735560913053,2.5851,193.75,193.71,2.5855]
[1735560913256,11.17316435,193.77,193.72,8.62408888]
[1735560913548,8.19316435,193.75,193.68,28.29112354]
[1735560913754,8.19316435,193.75,193.69,8.62110361]
[1735560913954,8.19316435,193.75,193.7,8.62110361]
[1735560914155,8.19316435,193.75,193.71,8.62110361]
[1735560914354,8.19316435,193.75,193.69,2.5859]
[1735560914655,8.19316435,193.75,193.7,8.61785612]
[1735560914851,8.19316435,193.75,193.71,8.61785612]
[1735560915152,8.19316435,193.75,193.69,2.5859]
[1735560915351,8.19316435,193.75,193.7,8.61568502]
[1735560915552,2.5853,193.74,193.71,8.61568502]
[1735560915851,2.5853,193.74,193.69,2.5859]
[1735560916051,2.5853,193.74,193.7,8.6154098]
[1735560916252,2.5853,193.74,193.71,4.07421576]
[1735560916451,4.7192,193.81,193.69,8.19316435]
[1735560916653,8.19316435,193.8,193.73,8.19316435]
[1735560916853,8.19316435,193.8,193.74,8.61067608]
[1735560917048,8.19316435,193.8,193.75,8.61067608]
[1735560917256,10.77766435,193.8,193.75,2.5851]
[1735560917549,10.77766435,193.8,193.76,8.60607999]
[1735560917755,8.19316435,193.8,193.73,8.19316435]
[1735560917952,8.19316435,193.8,193.74,8.60209984]
[1735560918154,8.19316435,193.8,193.75,8.60209984]
[1735560918354,2.5848,193.78,193.71,9.69386435]
[1735560918547,2.5848,193.78,193.73,2.5853]
[1735560918748,2.5848,193.78,193.74,8.60165319]
[1735560918957,2.5848,193.78,193.75,8.60165319]
[1735560919159,2.585,193.77,193.72,2.5855]
[1735560919355,8.19316435,193.76,193.73,8.59986827]
[1735560919654,8.19316435,193.76,193.7,3.0]
[1735560919855,2.5851,193.75,193.71,11.18786747]
[1735560920055,2.5851,193.75,193.72,8.60236747]
[1735560920258,2.5851,193.75,193.73,4.06807133]
[1735560920456,2.585,193.76,193.72,2.5854]
[1735560920659,8.19316435,193.8,193.73,16.79353882]
[1735560920959,8.19316435,193.8,193.74,8.59873355]
[1735560921160,8.19316435,193.8,193.75,8.59873355]
[1735560921353,8.19316435,193.78,193.71,8.19316435]
[1735560921551,8.19316435,193.78,193.72,8.59710594]
[1735560921754,2.5849,193.77,193.73,11.18240594]
[1735560921951,2.5849,193.77,193.74,8.59710594]
[1735560922156,2.5849,193.77,193.75,8.59710594]
[1735560922353,2.5849,193.77,193.73,2.5853]
[1735560922558,8.19316435,193.78,193.75,2.5851]
[1735560922857,8.19316435,193.8,193.71,8.19316435]
[1735560923057,8.19316435,193.8,193.72,8.59428956]
[1735560923256,8.19316435,193.8,193.73,8.59428956]
[1735560923457,2.5849,193.77,193.74,11.17948956]
[1735560923667,2.5849,193.77,193.75,8.59428956]
[1735560923960,2.5849,193.77,193.74,2.5852]
[1735560924264,8.19316435,193.76,193.7,2.98]
[1735560924461,8.19316435,193.76,193.71,8.59895066]
[1735560924663,8.19316435,193.76,193.72,8.59895066]
[1735560924860,8.19316435,193.76,193.7,2.98]
[1735560925062,8.19316435,193.76,193.71,8.59880571]
[1735560925262,2.98,193.83,193.72,8.59880571]
[1735560925463,8.19316435,193.8,193.73,8.59880571]
[1735560925661,10.77766435,193.8,193.75,2.585]
[1735560925861,10.77766435,193.8,193.71,8.19316435]
[1735560926060,10.77766435,193.8,193.72,8.59867801]
[1735560926262,10.77766435,193.8,193.76,2.5849]
[1735560926561,8.19316435,193.8,193.75,2.98]
[1735560926764,8.19316435,193.82,193.79,2.5845]
[1735560926970,8.19316435,193.82,193.75,11.17316435]
[1735560927267,8.19316435,193.82,193.76,8.60334638]
[1735560927561,2.97436773,193.85,193.77,8.60334638]
[1735560927562,8.19316435,193.84,193.77,8.60334638]
[1735560927765,10.77706435,193.84,193.78,8.60334638]
[1735560928057,10.77706435,193.84,193.79,8.60334638]
[1735560928254,10.77706435,193.84,193.77,8.19316435]
[1735560928459,10.77706435,193.84,193.8,2.5843]
[1735560929166,8.19316435,193.84,193.8,2.5843]
[1735560929365,8.19316435,193.84,193.77,8.19316435]
[1735560929565,8.19316435,193.84,193.81,2.5841]
[1735560929760,8.19316435,193.84,193.77,8.19316435]
[1735560929958,10.77696435,193.84,193.8,2.5842]
[1735560930263,8.19316435,193.84,193.77,8.19316435]
[1735560930465,8.19316435,193.84,193.78,8.59786297]
[1735560930666,8.19316435,193.84,193.79,8.59786297]
[1735560930861,8.19316435,193.84,193.8,8.59786297]
[1735560931068,8.19316435,193.84,193.75,11.17316435]
[1735560931269,8.19316435,193.84,193.76,8.60409165]
[1735560931461,2.5838,193.83,193.79,2.5842]
[1735560931665,2.5838,193.83,193.8,8.60409165]
[1735560931867,2.5838,193.83,193.79,2.5842]
[1735560932068,2.5838,193.83,193.8,8.60480286]
[1735560932263,2.5838,193.83,193.79,2.5842]
[1735560932463,2.5838,193.83,193.8,11.18968462]
[1735560932664,2.5838,193.83,193.8,2.5842]
[1735560932865,8.19316435,193.84,193.81,2.584]
[1735560934067,8.19316435,193.84,193.82,2.5838]
[1735560934766,1.5883,193.88,193.84,2.5837]
[1735560934966,8.19316435,193.88,193.81,8.19316435]
[1735560935171,8.19316435,193.88,193.82,8.6036004]
[1735560935375,8.19316435,193.88,193.85,2.5834]
[1735560936471,8.19316435,193.88,193.86,2.5834]
[1735560936973,8.19316435,193.88,193.85,2.5835]
[1735560937769,8.19316435,193.9,193.83,8.19316435]
[1735560937972,8.19316435,193.9,193.84,8.60007857]
[1735560938167,8.19316435,193.9,193.85,8.60007857]
[1735560938371,8.19316435,193.9,193.86,11.18337857]
[1735560938372,10.77606435,193.9,193.86,11.18337857]
[1735560938572,10.77606435,193.9,193.86,2.5833]
[1735560939877,10.77606435,193.9,193.83,8.19316435]
[1735560939878,8.19316435,193.9,193.87,2.5832]
[1735560940179,8.19316435,193.9,193.83,8.19316435]
[1735560940477,8.19316435,193.9,193.87,2.5832]
[1735560946574,8.19316435,193.9,193.86,2.5834]
[1735560946776,8.19316435,193.9,193.84,2.98]
[1735560946972,8.19316435,193.9,193.85,8.58737966]
[1735560947182,8.19316435,193.9,193.82,2.98]
[1735560947479,2.583,193.89,193.85,2.5834]
[1735560947876,2.583,193.89,193.82,2.98]
[1735560948078,2.583,193.89,193.86,2.5834]
[1735560948570,8.19316435,193.9,193.83,8.19316435]
[1735560948777,8.19316435,193.9,193.88,2.5831]
[1735560950382,8.19316435,193.9,193.89,2.583]
[1735560951281,8.19316435,193.92,193.84,8.19316435]
[1735560951578,2.98,193.97,193.86,8.19316435]
[1735560951782,8.19316435,193.94,193.87,11.55851174]
[1735560951983,8.19316435,193.94,193.87,2.98]
[1735560952684,8.19316435,193.94,193.91,2.5826]
[1735560952984,8.19316435,193.94,193.86,8.19316435]
[1735560953185,8.19316435,193.92,193.89,2.583]
[1735560953387,8.19316435,193.92,193.87,2.98]
[1735560953586,2.5828,193.91,193.88,2.5831]
[1735560954081,8.19316435,193.92,193.87,2.98]
[1735560954289,10.77586435,193.92,193.88,2.5831]
[1735560954585,8.19316435,193.92,193.88,2.5831]
[1735560955487,2.5827,193.91,193.88,2.5831]
[1735560956091,8.19316435,193.9,193.88,2.5831]
[1735560956594,2.5827,193.91,193.88,2.5831]
[1735560961098,10.77576435,193.92,193.88,2.5831]
[1735560962696,8.19316435,193.92,193.85,11.17316435]
[1735560962894,8.19316435,193.92,193.86,8.58374907]
[1735560963200,8.19316435,193.92,193.87,8.58374907]
[1735560963397,8.19316435,193.92,193.88,8.58374907]
[1735560963597,8.19316435,193.92,193.85,11.17316435]
[1735560963797,8.19316435,193.92,193.86,8.58310894]
[1735560963998,8.19316435,193.92,193.87,8.58310894]
[1735560964199,8.19316435,193.92,193.88,8.58310894]
[1735560964399,8.19316435,193.92,193.91,2.5827]
[1735560964603,2.5828,193.91,193.85,2.98]
[1735560964803,2.5828,193.91,193.86,8.58109417]
[1735560965102,2.5828,193.91,193.88,2.5831]
[1735560966098,10.77606435,193.9,193.87,2.5832]
[1735560966299,8.19316435,193.88,193.83,4.45351961]
[1735560966497,8.19316435,193.86,193.83,4.45351961]
[1735560966697,8.19316435,193.86,193.81,28.29112354]
[1735560966902,10.77666435,193.86,193.82,11.17298277]
[1735560967101,10.77666435,193.86,193.83,8.58908277]
[1735560967400,10.77666435,193.86,193.82,2.5839]
[1735560967600,8.19316435,193.86,193.83,11.17970678]
[1735560967801,8.19316435,193.86,193.83,2.5837]
[1735560968403,8.19316435,193.86,193.84,11.18199584]
[1735560968598,8.19316435,193.86,193.84,2.5836]
[1735560969402,4.5137,193.91,193.79,18.24594523]
[1735560969403,8.19316435,193.88,193.81,8.19316435]
[1735560969602,8.19316435,193.88,193.85,2.5835]
[1735560970608,8.19316435,193.9,193.83,8.19316435]
[1735560970800,8.19316435,193.9,193.84,8.6097924]
[1735560970999,8.19316435,193.9,193.85,8.6097924]
[1735560971196,8.19316435,193.9,193.88,2.5831]
[1735560972304,8.19316435,193.9,193.87,2.5832]
[1735560973106,8.19316435,193.9,193.84,2.98]
[1735560973305,8.19316435,193.88,193.85,8.61807006]
[1735560973507,8.19316435,193.88,193.81,29.41150701]
[1735560973508,8.19316435,193.86,193.81,7.07278088]
[1735560973709,8.19316435,193.86,193.82,8.62124851]
[1735560974004,10.77656435,193.86,193.83,8.6212485]
[1735560974204,10.77656435,193.86,193.84,8.6212485]
[1735560974506,10.77656435,193.86,193.83,2.5838]
[1735560974706,10.77656435,193.86,193.84,8.62306424]
[1735560975009,10.77656435,193.86,193.83,2.5838]
[1735560975306,8.19316435,193.86,193.84,8.6230579]
[1735560975505,8.19316435,193.86,193.85,8.6230579]
[1735560976407,8.19316435,193.88,193.85,8.6230579]
[1735560976601,8.19316435,193.88,193.86,8.6230579]
[1735560976812,8.19316435,193.9,193.87,8.6230579]
[1735560977106,8.19316435,193.9,193.88,8.6230579]
[1735560977307,8.19316435,193.9,193.89,8.6230579]
[1735560977904,8.19316435,193.92,193.89,8.6230579]
[1735560978210,8.19316435,193.94,193.9,8.6230579]
[1735560978407,8.19316435,193.94,193.91,8.6230579]
[1735560978610,8.19316435,193.94,193.92,8.6230579]
[1735560978813,8.19316435,193.94,193.93,8.6230579]
[1735560979713,4.1029,193.97,193.93,8.6230579]
[1735560979912,8.19316435,193.96,193.94,8.6230579]
[1735560980113,8.19316435,193.96,193.89,11.17316435]
[1735560980310,8.19316435,193.96,193.9,8.62777205]
[1735560980509,56.39723202,194.08,193.91,16.8209364]
[1735560980813,8.19316435,193.99,193.92,8.62777205]
[1735560981010,8.19316435,193.99,193.93,8.62777205]
[1735560981310,7.5937,194.07,193.94,8.62777205]
[1735560981311,8.19316435,194.0,193.94,8.62777205]
[1735560981508,8.19316435,194.0,193.95,8.62777205]
[1735560981705,8.19316435,194.0,193.96,8.62777205]
[1735560981912,8.19316435,194.0,193.97,8.62777205]
[1735560982107,8.19316435,194.0,193.98,8.62777205]
[1735560982304,2.5814,193.97,193.93,10.77506435]
[1735560982506,8.19316435,193.96,193.94,8.61766754]
[1735560982712,8.19316435,193.96,193.92,2.98]
[1735560982916,8.19316435,193.96,193.93,8.61861879]
[1735560983217,8.19316435,193.96,193.94,8.61861879]
[1735560983414,8.19316435,193.96,193.9,7.07278088]
[1735560983716,8.19316435,193.93,193.91,8.6176658]
[1735560983917,8.19316435,193.93,193.86,7.07278088]
[1735560984216,2.98,193.92,193.87,8.61860239]
[1735560984405,2.5825,193.89,193.88,8.61860239]
[1735560984607,2.98,193.91,193.86,7.07278088]
[1735560984806,4.5093,193.9,193.8,7.07278088]
[1735560985012,2.5832,193.84,193.81,8.62105976]
[1735560985310,8.19316435,193.86,193.82,8.62105976]
[1735560985515,8.19316435,193.86,193.83,8.62105976]
[1735560985817,8.19316435,193.86,193.84,8.62039918]
[1735560986118,2.5834,193.82,193.77,4.134]
[1735560986315,2.5834,193.82,193.78,8.62045826]
[1735560986514,2.5834,193.82,193.77,4.134]
[1735560986515,2.5834,193.82,193.79,8.62045826]
[1735560986715,2.5834,193.82,193.8,8.62045826]
[1735560986915,2.5834,193.82,193.81,8.62045826]
[1735560988710,2.5834,193.82,193.77,4.134]
[1735560988910,2.5834,193.82,193.81,4.54016354]
[1735560989122,2.5834,193.82,193.81,8.61367724]
[1735560991718,2.5834,193.82,193.77,2.5841]
[1735560991921,2.5834,193.82,193.78,8.60823216]
[1735560992119,12.80681082,193.85,193.79,8.60823216]
[1735560992311,12.80681082,193.82,193.72,8.59318088]
[1735560992509,2.98,193.81,193.73,8.60678162]
[1735560992807,2.98,193.81,193.74,8.60678162]
[1735560993115,2.5838,193.8,193.75,8.60678162]
[1735560993318,4.5845,193.81,193.76,8.60678162]
[1735560993514,4.5845,193.81,193.7,2.98]
[1735560993717,4.5845,193.81,193.71,8.60333419]
[1735560993919,4.5845,193.81,193.72,8.60333419]
[1735560994224,4.5845,193.81,193.73,8.60333419]
[1735560994535,2.5841,193.77,193.74,8.60333419]
[1735560994720,2.5841,193.77,193.75,4.53475298]
[1735560995019,2.5841,193.77,193.76,8.60192767]
[1735560995222,2.5839,193.78,193.76,8.60192767]
[1735560995425,2.5839,193.78,193.73,2.5846]
[1735560995721,2.5839,193.78,193.74,8.59754457]
[1735560995914,2.5839,193.78,193.75,8.59754457]
[1735560996115,2.5839,193.78,193.76,8.59754665]
[1735560996318,2.5841,193.77,193.72,2.98]
[1735560996517,2.5841,193.77,193.73,8.59507827]
[1735560996718,2.5841,193.77,193.74,8.59507827]
[1735560997021,2.5841,193.77,193.75,8.59507827]
[1735560997215,2.5841,193.77,193.76,8.59507827]
[1735560997417,2.5841,193.77,193.76,4.06467992]
[1735560997918,2.5841,193.77,193.76,4.06380313]
[1735560998518,2.5841,193.77,193.72,5.5647]
[1735560998719,2.5841,193.77,193.73,8.59140362]
[1735560999021,2.5841,193.77,193.74,8.59140362]
[1735560999313,4.5845,193.81,193.75,8.59140362]
[1735560999518,2.5842,193.76,193.72,2.98]
[1735560999722,2.5842,193.76,193.73,8.58978141]
[1735560999921,2.5842,193.76,193.74,8.58978141]
[1735561000123,2.5842,193.76,193.75,8.58978141]
[1735561001321,2.5842,193.76,193.72,2.98]
[1735561001516,2.5842,193.76,193.73,8.58715631]
[1735561001722,2.5843,193.75,193.74,8.58715631]
[1735561002423,15.78681082,193.76,193.64,12.80681082]
[1735561002622,12.80681082,193.73,193.67,8.58560302]
[1735561002820,12.80681082,193.73,193.66,7.07278088]
[1735561004127,2.5849,193.71,193.66,7.07278088]
[1735561004420,12.80681082,193.76,193.67,8.57649194]
[1735561004625,2.5846,193.74,193.69,2.585]
[1735561006322,10.78862782,193.73,193.69,2.585]
[1735561006824,8.20402782,193.73,193.66,8.20402782]
[1735561007027,8.20402782,193.71,193.66,2.5854]
[1735561008620,2.585,193.7,193.66,2.5854]
[1735561009718,2.5854,193.68,193.64,10.78972782]
[1735561009918,8.20402782,193.65,193.57,7.07278088]
[1735561010125,8.20402782,193.63,193.58,8.56918526]
[1735561010425,8.20402782,193.63,193.59,8.56918526]
[1735561010626,8.20402782,193.63,193.57,7.07278088]
[1735561010929,8.20402782,193.63,193.58,8.56402469]
[1735561011125,2.5861,193.62,193.59,4.04985295]
[1735561011425,2.5861,193.62,193.58,2.5865]
[1735561012129,10.79002782,193.63,193.58,2.5865]
[1735561013332,10.79002782,193.63,193.59,2.5864]
[1735561013624,2.98,193.68,193.58,8.20402782]
[1735561013825,8.20402782,193.66,193.63,2.5859]
[1735561014228,2.98,193.7,193.57,12.82663068]
[1735561014229,12.82663068,193.69,193.57,12.82663068]
[1735561014528,12.82663068,193.69,193.61,2.5861]
[1735561014929,2.5857,193.66,193.61,2.5861]
[1735561015128,12.82663068,193.69,193.63,2.5858]
[1735561015329,2.5854,193.68,193.63,2.5858]
[1735561015529,2.5854,193.68,193.6,2.98]
[1735561015822,2.5854,193.68,193.61,8.54402488]
[1735561016027,15.82353068,193.72,193.62,8.54402488]
[1735561016329,12.82663068,193.72,193.63,8.54402488]
[1735561016528,12.82663068,193.72,193.64,8.54402488]
[1735561016733,2.5849,193.71,193.66,2.5854]
[1735561017228,2.5849,193.71,193.67,2.5854]
[1735561017429,12.82663068,193.72,193.62,3.0568]
[1735561017627,12.82663068,193.72,193.63,8.54155403]
[1735561017827,12.82663068,193.72,193.68,2.5852]
[1735561018819,12.82663068,193.75,193.65,2.98]
[1735561019024,15.41113068,193.75,193.7,2.585]
[1735561019433,12.82663068,193.75,193.7,2.585]
[1735561019728,2.5845,193.74,193.69,2.5851]
[1735561020519,2.5845,193.74,193.65,2.98]
[1735561020721,12.82663068,193.75,193.66,8.54061951]
[1735561020920,12.82663068,193.75,193.67,8.54061951]
[1735561021130,12.82663068,193.75,193.68,8.54061951]
[1735561021321,12.82663068,193.75,193.65,2.98]
[1735561021525,12.82663068,193.78,193.66,21.36696496]
[1735561021728,12.82663068,193.78,193.67,8.54033428]
[1735561021929,2.5841,193.77,193.72,2.5846]
[1735561022728,12.82663068,193.78,193.72,2.5846]
[1735561022930,2.5842,193.76,193.72,2.5846]
[1735561023732,12.82663068,193.78,193.72,2.5846]
[1735561024024,2.5841,193.77,193.72,2.5846]
[1735561024825,1.557,193.89,193.7,2.98]
[1735561024826,15.41033068,193.81,193.7,2.98]
[1735561025025,2.98,193.86,193.72,12.82663068]
[1735561025222,12.82663068,193.85,193.73,8.5506118]
[1735561025425,12.82663068,193.85,193.74,8.5506118]
[1735561025628,12.82663068,193.85,193.75,11.5306118]
[1735561025830,12.82663068,193.85,193.76,8.5506118]
[1735561026138,12.82663068,193.85,193.77,8.5506118]
[1735561026428,1.557,193.89,193.78,8.5506118]
[1735561026642,1.557,193.89,193.79,8.5506118]
[1735561026829,12.82663068,193.88,193.8,8.5506118]
[1735561027134,2.5829,193.87,193.82,2.5833]
[1735561027539,2.5829,193.87,193.83,8.56731155]
[1735561027725,12.82663068,193.88,193.84,8.56731155]
[1735561027925,12.82663068,193.91,193.85,8.56731155]
[1735561028134,15.40883068,193.91,193.86,2.5828]
[1735561028534,12.82663068,193.91,193.81,4.6514]
[1735561028735,12.82663068,193.91,193.84,2.583]
[1735561028736,2.5825,193.9,193.84,2.583]
[1735561029037,2.5825,193.9,193.85,8.57008792]
[1735561029229,2.5825,193.9,193.86,8.57008792]
[1735561029431,2.5825,193.9,193.84,2.583]
[1735561029731,2.5825,193.9,193.85,8.56961188]
[1735561029936,2.5825,193.9,193.86,8.56961188]
[1735561030130,12.82663068,193.88,193.81,4.6514]
[1735561030326,12.82663068,193.88,193.82,8.57044703]
[1735561030527,12.82663068,193.88,193.83,8.57044703]
[1735561030729,2.583,193.86,193.84,8.57044703]
[1735561030934,2.583,193.86,193.81,7.2348]
[1735561031133,2.583,193.86,193.82,8.56856138]
[1735561031435,2.583,193.86,193.83,8.56856138]
[1735561031639,2.583,193.85,193.84,8.56856138]
[1735561031844,12.82663068,193.88,193.79,2.5837]
[1735561032030,12.82663068,193.88,193.8,8.56691496]
[1735561032236,12.82663068,193.85,193.81,8.56691496]
[1735561032545,2.5834,193.82,193.77,5.564]
[1735561032840,12.82663068,193.85,193.78,8.56617245]
[1735561033034,15.80663068,193.88,193.79,8.56617245]
[1735561033236,15.80663068,193.88,193.8,8.56617245]
[1735561033439,15.80663068,193.88,193.81,8.56617245]
[1735561033641,15.80663068,193.88,193.77,2.98]